bitfinex-derivatives/quotes_ETHF0:USTF0_20241231
["timestamp","ask_amount","ask_price","bid_price","bid_amount"]
[1735688384832,0.4526,3336.5,3336.4,12.68293432]
[1735688385832,0.4526,3336.5,3336.4,5.59637948]
[1735688386333,0.75288,3336.5,3336.4,5.59637948]
[1735688386935,0.75288,3336.5,3336.4,4.89627948]
[1735688388236,0.75288,3336.5,3336.3,0.3003]
[1735688388237,5.15575869,3336.5,3336.3,0.3003]
[1735688388534,0.30029,3336.4,3336.3,0.3003]
[1735688388738,5.53041659,3336.5,3336.2,4.72563958]
[1735688388931,2.57095736,3336.3,3336.2,4.72563958]
[1735688389535,6.1130722,3336.3,3336.2,4.72563958]
[1735688390834,6.1130722,3336.3,3336.2,4.02553958]
[1735688391034,0.30031,3336.2,3336.1,2.46553958]
[1735688391232,3.50811,3336.2,3336.1,2.46553958]
[1735688392327,7.91095869,3336.2,3336.0,0.30033]
[1735688392531,0.30032,3336.1,3336.0,0.30033]
[1735688392938,0.30033,3336.0,3335.9,0.30033]
[1735688393235,0.75133,3336.0,3335.9,0.30033]
[1735688393733,0.451,3336.0,3335.9,0.30033]
[1735688394137,0.75133,3336.0,3335.9,0.30033]
[1735688394935,3.54042315,3336.1,3335.7,7.08845937]
[1735688395139,3.54042315,3336.1,3336.0,0.30033]
[1735688396730,0.3003,3336.3,3336.2,0.30031]
[1735688396933,0.30032,3336.1,3336.0,9.41711087]
[1735688397138,3.50812,3336.1,3336.0,9.41711087]
[1735688398537,7.91095869,3336.1,3335.4,7.08594785]
[1735688398739,0.30037,3335.5,3335.4,7.38632785]
[1735688399141,0.30037,3335.5,3335.4,7.08594785]
[1735688399538,0.30037,3335.5,3335.4,7.38632785]
[1735688399737,0.30037,3335.5,3335.4,0.30038]
[1735688404439,3.50816,3335.7,3335.6,0.30036]
[1735688406341,3.5382735,3336.0,3335.6,0.30036]
[1735688406644,3.5382735,3336.1,3336.0,0.30033]
[1735688408347,2.27065736,3336.3,3336.2,0.30031]
[1735688408534,0.3003,3336.4,3336.3,0.3003]
[1735688411447,6.66053736,3336.6,3336.5,0.30028]
[1735688411642,3.6353,3336.6,3336.5,0.30028]
[1735688411843,3.2078,3336.6,3336.5,0.30028]
[1735688416243,0.30026,3336.8,3336.4,1.05101]
[1735688416244,3.2078,3336.7,3336.4,1.05101]
[1735688416449,3.2078,3336.7,3336.6,0.30027]
[1735688417751,3.50806,3336.7,3336.6,0.30027]
[1735688418051,0.4359,3336.9,3336.8,0.30025]
[1735688418650,3.5382735,3337.1,3337.0,0.30024]
[1735688418953,21.01329331,3338.3,3336.9,2.27065736]
[1735688419146,21.01329331,3338.3,3337.8,0.30016]
[1735688419854,21.31341331,3338.3,3337.8,0.30016]
[1735688420055,2.57079736,3338.1,3338.0,0.30014]
[1735688420349,0.30016,3337.9,3337.7,0.30017]
[1735688420556,3.19095736,3337.8,3337.7,0.30017]
[1735688421053,0.9203,3337.8,3337.7,0.30017]
[1735688421743,1.22046,3337.8,3337.7,0.30017]
[1735688422351,0.9203,3337.8,3337.7,6.10444287]
[1735688422850,0.4617,3338.0,3337.7,5.80427287]
[1735688423056,0.4617,3338.0,3337.9,0.30016]
[1735688423655,3.96965,3338.0,3337.9,0.30016]
[1735688424053,3.6695,3338.0,3337.9,0.30016]
[1735688424955,0.4617,3338.0,3337.9,0.30016]
[1735688428863,0.76185,3338.0,3337.9,0.30016]
[1735688429161,0.30018,3337.7,3337.6,0.30018]
[1735688429359,2.57083736,3337.7,3337.6,0.30018]
[1735688430763,2.27065736,3337.7,3337.0,0.7506]
[1735688431064,0.30022,3337.2,3337.1,3.50803]
[1735688431759,0.30023,3337.1,3337.0,0.30023]
[1735688432159,0.30022,3337.2,3337.1,0.30022]
[1735688437657,0.30022,3337.2,3336.6,1.19448]
[1735688437658,0.30025,3337.0,3336.9,0.30024]
[1735688438561,0.74525,3337.0,3336.9,0.30024]
[1735688442757,0.30028,3336.5,3336.4,3.50808]
[1735688444364,0.30028,3336.5,3336.4,0.30028]
[1735688445267,2.27065736,3336.7,3336.0,0.75082]
[1735688445462,0.30028,3336.6,3336.5,0.30027]
[1735688450371,0.445,3337.0,3336.0,6.36165736]
[1735688450571,0.74524,3337.0,3336.9,0.30025]
[1735688450871,0.30026,3336.8,3336.7,0.30025]
[1735688452073,5.92345736,3337.0,3336.5,0.8507]
[1735688452283,3.01589736,3337.0,3336.9,0.30025]
[1735688455577,0.30026,3336.9,3336.8,0.30025]
[1735688461384,5.77869736,3337.0,3336.9,0.30025]
[1735688463781,3.2078,3337.0,3336.9,0.30025]
[1735688463986,0.4454,3337.4,3337.3,0.3002]
[1735688463987,0.30021,3337.4,3337.3,0.3002]
[1735688470089,0.75038,3338.1,3337.8,0.30017]
[1735688470090,3.2078,3337.9,3337.8,0.30017]
[1735688470289,0.30013,3338.2,3338.1,0.30014]
[1735688470590,0.30012,3338.3,3338.2,0.30012]
[1735688471189,0.30014,3338.2,3338.1,0.30013]
[1735688472088,0.30015,3338.1,3338.0,0.30015]
[1735688472282,2.27065736,3338.0,3337.7,7.05382398]
[1735688472486,0.30017,3337.8,3337.7,7.35399398]
[1735688472990,0.30017,3337.8,3337.7,0.30017]
[1735688475390,0.4413,3337.9,3337.6,0.30018]
[1735688475391,0.30017,3337.7,3337.6,0.30018]
[1735688475593,0.30019,3337.5,3337.4,7.35402398]
[1735688476189,5.47845736,3337.7,3337.1,7.05382398]
[1735688476500,0.30022,3337.2,3337.1,7.35405398]
[1735688476893,0.76302,3337.2,3337.1,7.35405398]
[1735688477497,0.76302,3337.2,3337.1,0.30023]
[1735688477994,3.50801,3337.3,3337.2,0.30022]
[1735688478494,3.2078,3337.3,3337.2,0.30022]
[1735688478996,6.74025945,3338.0,3337.2,3.2078]
[1735688479198,6.74025945,3338.0,3337.9,0.30016]
[1735688479410,7.04040945,3338.0,3337.9,0.30016]
[1735688479903,6.74025945,3338.0,3337.9,0.30016]
[1735688480195,3.2078,3338.0,3337.9,0.30016]
[1735688484010,0.74473,3338.3,3338.2,0.30013]
[1735688485901,0.30014,3338.2,3338.1,0.30013]
[1735688486108,0.30015,3338.1,3338.0,0.30013]
[1735688486309,0.30013,3338.2,3338.1,0.30013]
[1735688490409,0.4446,3338.3,3337.8,0.4601]
[1735688490604,0.4446,3338.3,3338.2,0.30013]
[1735688491314,3.2078,3338.6,3338.0,3.2078]
[1735688491515,3.2078,3338.6,3338.5,0.3001]
[1735688492211,0.30011,3338.5,3338.4,0.3001]
[1735688494117,0.30014,3338.3,3338.2,0.30012]
[1735688494820,0.74604,3338.3,3338.2,0.30012]
[1735688496813,0.30014,3338.2,3338.1,0.30014]
[1735688498418,0.4459,3338.3,3338.2,0.30013]
[1735688498816,0.74602,3338.3,3338.2,0.30013]
[1735688500221,0.4459,3338.3,3338.2,0.30013]
[1735688500422,0.30011,3338.5,3338.4,0.30011]
[1735688501211,0.8785,3338.7,3338.2,0.4365]
[1735688501422,0.3001,3338.6,3338.5,0.30009]
[1735688501618,1.17859,3338.7,3338.6,0.30009]
[1735688503023,0.3001,3338.6,3338.5,0.3001]
[1735688504821,1.17859,3338.7,3338.6,0.30009]
[1735688511729,0.8785,3338.7,3338.6,0.30009]
[1735688512328,0.8785,3338.7,3338.6,0.72349]
[1735688514829,1.17858,3338.7,3338.6,0.72349]
[1735688515028,0.8785,3338.7,3338.6,0.72349]
[1735688517536,0.8785,3338.7,3338.6,5.42961986]
[1735688518733,1.17858,3338.7,3338.6,5.42961986]
[1735688519737,1.17858,3338.7,3338.6,5.00621986]
[1735688520237,1.17858,3338.7,3338.6,0.30009]
[1735688520638,0.30009,3338.6,3338.5,5.00622986]
[1735688521237,0.30009,3338.6,3338.5,0.3001]
[1735688522134,0.3001,3338.5,3338.4,4.70612986]
[1735688522334,2.57075736,3338.5,3338.4,4.70612986]
[1735688522536,0.30011,3338.4,3338.3,5.00624986]
[1735688523746,0.30012,3338.3,3338.2,4.70612986]
[1735688524737,3.50792,3338.3,3338.2,3.14612986]
[1735688524940,8.50792,3338.3,3338.2,1.74652986]
[1735688525148,0.30013,3338.2,3338.1,6.35402398]
[1735688525447,1.19437774,3338.2,3338.1,5.65322398]
[1735688525945,0.30013,3338.2,3338.1,5.65322398]
[1735688526846,5.0,3338.2,3337.0,12.62491087]
[1735688527041,0.30021,3337.3,3337.2,1.15892]
[1735688527543,0.30021,3337.3,3337.2,0.8587]
[1735688527743,3.50799,3337.6,3337.5,0.30019]
[1735688528339,5.86627814,3337.6,3337.5,0.30019]
[1735688529342,3.50799,3337.6,3337.5,0.30019]
[1735688529745,3.2078,3337.6,3337.5,0.30019]
[1735688530250,0.30017,3337.8,3337.7,0.30018]
[1735688530846,0.30016,3337.9,3337.8,0.30017]
[1735688531046,2.35828814,3338.1,3337.9,0.4594]
[1735688531244,2.65843814,3338.1,3338.0,0.75815]
[1735688531545,2.35828814,3338.1,3338.0,0.75815]
[1735688531748,7.04536221,3338.2,3338.1,0.30014]
[1735688531749,5.56608814,3338.2,3338.1,0.30014]
[1735688532046,5.86621814,3338.2,3338.1,0.30014]
[1735688532846,3.50793,3338.2,3338.1,0.30014]
[1735688535853,0.30014,3338.1,3338.0,1.20704]
[1735688536056,3.50794,3338.2,3338.1,0.30014]
[1735688538252,3.2078,3338.2,3338.0,0.458]
[1735688538453,0.30014,3338.1,3338.0,0.458]
[1735688540152,0.30014,3338.1,3338.0,0.75815]
[1735688541358,3.2078,3338.2,3338.1,0.30014]
[1735688541957,3.50793,3338.2,3338.1,0.30014]
[1735688542452,0.30014,3338.1,3338.0,0.75815]
[1735688546756,0.30014,3338.1,3338.0,0.458]
[1735688547558,0.30014,3338.1,3338.0,0.75815]
[1735688554962,0.30014,3338.2,3338.1,0.30013]
[1735688558361,1.38005507,3338.2,3338.1,0.30013]
[1735688559262,0.30013,3338.3,3338.0,0.458]
[1735688559458,6.64600321,3338.5,3338.4,0.30012]
[1735688559757,4.28771507,3338.5,3338.4,0.30012]
[1735688559960,1.07991507,3338.5,3338.4,0.30012]
[1735688560257,3.83753221,3338.6,3338.5,0.30011]
[1735688561164,3.83753221,3338.6,3338.3,0.4478]
[1735688561165,2.35753321,3338.9,3338.3,0.4478]
[1735688561366,0.30009,3338.8,3338.7,0.30008]
[1735688564465,2.35753321,3338.9,3338.2,1.21374]
[1735688564660,0.3001,3338.7,3338.6,0.30009]
[1735688565561,0.3001,3338.6,3338.5,0.3001]
[1735688566667,2.35753321,3338.9,3338.2,1.21373]
[1735688566868,2.65761321,3338.8,3338.7,0.30008]
[1735688567765,2.35753321,3338.8,3338.7,0.30008]
[1735688568369,0.30007,3338.9,3338.8,0.30008]
[1735688577772,4.63835554,3339.0,3338.7,0.4421]
[1735688577973,0.30008,3338.8,3338.7,0.4421]
[1735688578676,0.30008,3338.8,3338.7,0.74219]
[1735688580380,1.37957684,3338.8,3338.7,0.74219]
[1735688580774,1.37957684,3338.8,3338.7,0.4421]
[1735688581378,1.37957684,3338.8,3338.7,0.74219]
[1735688584682,3.10770321,3339.0,3338.9,0.30007]
[1735688584683,2.35753321,3339.0,3338.9,0.30007]
[1735688585289,1.65773321,3339.0,3338.9,0.30007]
[1735688586589,0.30004,3339.3,3338.9,12.60890764]
[1735688586891,0.30004,3339.3,3339.2,0.30004]
[1735688588494,0.30004,3339.3,3339.2,0.74384]
[1735688588695,0.30003,3339.4,3339.3,0.30002]
[1735688590194,0.30002,3339.5,3339.4,0.30002]
[1735688591189,3.2078,3339.6,3339.2,0.4438]
[1735688591391,3.50781,3339.6,3339.5,0.30002]
[1735688592192,3.2078,3339.6,3339.5,0.30002]
[1735688593498,3.50781,3339.6,3339.5,0.30002]
[1735688593686,3.32751759,3340.0,3339.8,0.29998]
[1735688593687,0.29999,3339.9,3339.8,0.29998]
[1735688595695,0.4345,3340.1,3339.6,0.438]
[1735688595696,3.2078,3340.2,3339.7,0.74999]
[1735688595894,3.53743221,3340.4,3339.6,3.6458]
[1735688595895,3.53743221,3340.4,3339.8,0.432]
[1735688596099,3.53743221,3340.4,3340.3,0.29995]
[1735688596615,3.53743221,3340.6,3340.5,0.29993]
[1735688598304,3.2078,3341.0,3340.4,0.432]
[1735688598603,0.2999,3340.9,3340.8,0.29989]
[1735688598996,3.2078,3341.0,3340.4,0.432]
[1735688599197,0.29991,3340.7,3340.4,0.432]
[1735688599501,0.29991,3340.7,3340.6,0.29992]
[1735688605909,0.29992,3340.8,3340.7,0.29991]
[1735688606109,0.29992,3340.7,3340.6,0.29991]
[1735688609305,6.68217759,3341.1,3340.5,0.4577]
[1735688609306,2.27946759,3340.8,3340.5,0.4577]
[1735688609613,0.29994,3340.5,3340.4,0.29994]
[1735688609807,0.29994,3340.4,3340.3,3.50774]
[1735688610209,1.37837563,3340.4,3340.3,3.50774]
[1735688611416,1.07843563,3340.4,3340.1,0.29996]
[1735688611614,1.37839563,3340.2,3340.1,0.29996]
[1735688612109,0.29998,3340.1,3340.0,0.29997]
[1735688616318,0.29996,3340.2,3340.1,0.29996]
[1735688616617,0.29994,3340.6,3340.5,0.29992]
[1735688618517,0.29994,3340.5,3340.4,0.29993]
[1735688620116,0.29994,3340.4,3340.3,0.76074]
[1735688621108,0.29994,3340.4,3339.8,1.64419]
[1735688621109,2.27865401,3340.5,3339.8,0.8942]
[1735688621313,2.27865401,3340.1,3339.6,3.2078]
[1735688621516,0.3,3339.7,3339.6,3.50781]
[1735688621717,0.3,3339.7,3339.6,0.30001]
[1735688622308,2.27865401,3339.8,3339.3,0.4225]
[1735688622519,0.30004,3339.3,3339.2,0.73925]
[1735688623118,0.30003,3339.4,3339.3,0.30003]
[1735688623414,0.30003,3339.5,3339.4,0.30003]
[1735688624220,3.2078,3339.9,3339.2,0.4392]
[1735688624414,0.3,3339.8,3339.7,0.29999]
[1735688626922,0.30001,3339.7,3339.6,0.30001]
[1735688631725,0.30002,3339.6,3339.5,0.30001]
[1735688633920,3.2078,3339.9,3339.0,11.47455046]
[1735688634120,0.30001,3339.7,3339.6,0.3]
[1735688643540,0.29999,3340.0,3339.9,0.29998]
[1735688644632,3.2078,3340.1,3339.6,0.8937]
[1735688644828,0.3,3339.9,3339.8,0.29999]
[1735688645527,0.29999,3340.0,3339.9,0.29998]
[1735688646925,0.29996,3340.3,3340.2,0.29995]
[1735688647624,3.2078,3340.5,3339.9,3.2078]
[1735688647825,3.50774,3340.5,3340.4,0.29994]
[1735688648236,0.29994,3340.5,3340.4,0.29994]
[1735688649031,2.27865401,3341.0,3340.2,5.62409819]
[1735688649226,0.29992,3340.7,3340.6,0.29992]
[1735688649824,0.4525,3340.9,3340.2,5.62409819]
[1735688650122,0.2999,3340.9,3340.8,0.2999]
[1735688650833,0.2999,3340.9,3340.8,0.29769464]
[1735688654729,2.27865401,3341.0,3340.5,4.70829819]
[1735688654952,0.29992,3340.6,3340.5,4.70829819]
[1735688655634,2.27865401,3340.7,3340.4,0.29993]
[1735688655934,0.29994,3340.4,3340.3,5.00824819]
[1735688656934,0.29994,3340.4,3340.3,4.70829819]
[1735688657136,0.29994,3340.4,3340.2,7.36535046]
[1735688657137,0.29995,3340.3,3340.2,0.29995]
[1735688659642,0.29994,3340.6,3340.5,0.29992]
[1735688664237,0.29994,3340.5,3340.3,0.458]
[1735688664445,0.29994,3340.5,3340.4,0.29993]
[1735688680159,0.29993,3340.7,3340.6,0.29991]
[1735688683256,0.29993,3340.7,3340.6,1.20201]
[1735688684865,0.2999,3340.9,3340.8,0.29991]
[1735688686358,0.2999,3340.9,3340.8,5.00820819]
[1735688687562,0.2999,3340.9,3340.8,0.29991]
[1735688688764,0.2999,3340.9,3340.8,5.00820819]
[1735688688765,1.37810687,3340.9,3340.8,5.00820819]
[1735688689963,1.37810687,3340.9,3340.8,0.29991]
[1735688692462,1.37810687,3340.9,3340.8,5.00820819]
[1735688693463,0.2999,3340.9,3340.8,5.00820819]
[1735688693861,0.2999,3340.9,3340.8,10.56164116]
[1735688694571,3.53743221,3341.0,3340.8,10.26173116]
[1735688694769,3.53743221,3341.0,3340.9,0.2999]
[1735688696464,7.04511221,3341.1,3341.0,0.29989]
[1735688697766,7.04511221,3341.1,3341.0,5.01933603]
[1735688699870,3.83731221,3341.1,3341.0,5.01933603]
[1735688702567,4.91551908,3341.1,3341.0,5.01933603]
[1735688704466,4.91551908,3341.1,3341.0,0.29989]
[1735688706773,0.29989,3341.0,3340.9,5.01933603]
[1735688706967,0.29989,3341.0,3340.9,0.29989]
[1735688708265,0.2999,3340.9,3340.8,7.06540046]
[1735688708864,1.37810687,3340.9,3340.8,7.36531046]
[1735688709472,4.91553908,3340.9,3340.8,0.29991]
[1735688709667,0.29991,3340.8,3340.7,5.44448117]
[1735688710675,2.65798734,3340.8,3340.7,10.99775888]
[1735688711977,2.65798734,3340.8,3340.7,6.27838771]
[1735688712879,0.29991,3340.8,3340.7,6.27838771]
[1735688714280,0.29991,3340.8,3340.7,13.34378817]
[1735688714872,0.29991,3340.8,3340.7,13.04387817]
[1735688715184,0.29991,3340.8,3340.7,5.55327771]
[1735688715382,1.15891,3340.8,3340.7,5.55327771]
[1735688716383,0.859,3340.8,3340.6,4.72074613]
[1735688716582,1.37811687,3340.7,3340.6,4.72074613]
[1735688717983,0.29992,3340.6,3340.5,4.72074613]
[1735688718582,3.50772,3340.6,3340.5,4.72074613]
[1735688719286,7.04591795,3340.6,3340.5,10.27561161]
[1735688719985,7.04591795,3340.6,3340.5,10.57554161]
[1735688720378,5.86676412,3340.6,3340.5,12.92019594]
[1735688720582,5.86676412,3340.6,3340.5,12.62026594]
[1735688721789,2.65896412,3340.6,3340.5,12.62026594]
[1735688722089,0.29992,3340.6,3340.5,5.55486548]
[1735688723083,0.29992,3340.6,3340.5,12.62026594]
[1735688725486,2.65980612,3340.6,3340.5,12.62026594]
[1735688726882,3.83811795,3340.6,3340.5,10.27561127]
[1735688727989,0.29994,3340.4,3340.3,0.29995]
[1735688729287,2.65860488,3340.4,3340.3,5.02069579]
[1735688730194,2.35866488,3340.5,3340.4,0.29994]
[1735688730492,1.65916488,3340.5,3340.4,1.37814687]
[1735688730692,3.53799732,3340.6,3340.5,0.29993]
[1735688731694,7.92437628,3340.8,3340.7,0.29991]
[1735688731695,3.2078,3340.8,3340.7,0.29991]
[1735688732897,3.2078,3340.8,3340.7,12.92460193]
[1735688734190,3.2078,3340.8,3340.7,5.85029587]
[1735688734696,0.29989,3341.0,3340.9,0.2999]
[1735688734904,7.82400419,3341.2,3340.7,6.30017587]
[1735688735093,6.74579732,3341.2,3341.1,0.29988]
[1735688736185,3.53799732,3341.2,3341.1,0.29988]
[1735688736795,3.83783732,3341.6,3341.5,0.29984]
[1735688738090,1.07820687,3341.7,3341.4,4.71057474]
[1735688738289,1.37804687,3341.7,3341.6,0.29983]
[1735688739196,0.29984,3341.6,3341.5,0.29984]
[1735688739392,0.29984,3341.6,3341.5,0.75674]
[1735688740193,1.07820687,3341.7,3341.4,4.71057474]
[1735688740487,1.83384687,3341.5,3341.4,4.71057474]
[1735688741396,1.83384687,3341.5,3341.4,5.01042474]
[1735688741998,1.83384687,3341.5,3341.4,0.29985]
[1735688743496,0.29985,3341.4,3341.3,0.4551]
[1735688743691,1.37805687,3341.4,3341.3,0.4551]
[1735688744399,0.29987,3341.2,3341.1,4.71057474]
[1735688744594,1.37807687,3341.2,3341.1,4.71057474]
[1735688745900,0.29988,3341.1,3341.0,0.29989]
[1735688747696,0.29987,3341.2,3341.1,0.29986]
[1735688751006,0.29987,3341.3,3341.2,0.29986]
[1735688752604,0.75565,3341.5,3341.4,0.29985]
[1735688753903,1.83385687,3341.5,3341.4,0.29985]
[1735688755611,0.29987,3341.3,3341.2,0.29986]
[1735688755807,1.37807687,3341.3,3341.2,0.29986]
[1735688756515,0.29986,3341.4,3341.3,0.29985]
[1735688760509,0.29986,3341.4,3341.1,5.01045474]
[1735688760510,0.29987,3341.2,3341.1,5.01045474]
[1735688760712,1.37807687,3341.2,3341.1,4.71057474]
[1735688760911,1.37807687,3341.2,3341.1,5.01045474]
[1735688761604,1.37807687,3341.2,3341.1,0.29988]
[1735688762007,0.29987,3341.2,3341.1,0.29988]
[1735688763007,0.4558,3341.5,3340.9,4.71057474]
[1735688763217,0.29983,3341.7,3341.1,3.2078]
[1735688763406,0.29983,3341.7,3341.6,0.29983]
[1735688765616,1.37803687,3341.7,3341.6,0.29983]
[1735688766613,0.29983,3341.7,3341.6,0.29983]
[1735688766819,3.50758,3342.2,3342.1,0.29979]
[1735688767021,0.29978,3342.2,3342.1,0.29979]
[1735688767316,0.29978,3342.3,3342.2,0.29978]
[1735688768913,1.50930687,3342.4,3342.1,0.4626]
[1735688769119,1.80907687,3342.4,3342.3,0.29977]
[1735688769611,0.73087,3342.4,3342.3,0.29977]
[1735688770018,0.4311,3342.4,3342.3,0.29977]
[1735688770215,0.73086,3342.4,3342.3,0.29977]
[1735688771615,0.29978,3342.3,3342.2,0.29977]
[1735688772217,0.4311,3342.4,3342.1,0.4626]
[1735688772513,0.73086,3342.4,3342.3,0.29977]
[1735688773114,0.29977,3342.3,3342.2,0.29977]
[1735688773318,0.73087,3342.4,3342.3,0.29977]
[1735688774122,0.29979,3342.1,3342.0,0.4239]
[1735688774318,0.29981,3341.9,3341.8,5.01038474]
[1735688774520,0.29981,3341.9,3341.8,4.71057474]
[1735688774723,0.29981,3341.9,3341.8,5.01038474]
[1735688775219,0.4311,3342.4,3341.8,4.71057474]
[1735688775423,0.73086,3342.4,3342.3,0.29977]
[1735688775725,3.96909732,3342.4,3341.9,0.4353]
[1735688776024,3.96909732,3342.4,3341.8,0.74954]
[1735688776025,0.2998,3342.0,3341.8,0.29981]
[1735688776320,0.4576,3341.9,3341.8,0.29981]
[1735688776532,0.4576,3341.9,3341.6,0.8958]
[1735688776715,0.29982,3341.8,3341.7,0.29982]
[1735688778620,0.4576,3341.9,3341.6,0.4605]
[1735688778824,0.4576,3341.9,3341.5,7.91837474]
[1735688778825,0.29983,3341.6,3341.5,7.91837474]
[1735688779330,0.29983,3341.6,3341.5,5.01041474]
[1735688779720,3.50763,3341.6,3341.5,4.71057474]
[1735688779929,3.96393,3341.6,3341.5,4.71057474]
[1735688781019,3.96393,3341.6,3341.2,0.29986]
[1735688781020,0.29986,3341.3,3341.2,0.29986]
[1735688782628,0.29988,3341.2,3341.1,0.29987]
[1735688783626,0.4399,3341.4,3341.0,5.60567474]
[1735688783830,0.29986,3341.3,3341.2,0.29986]
[1735688784127,0.4399,3341.4,3341.0,5.60567474]
[1735688784328,0.73976,3341.4,3341.3,0.29986]
[1735688786532,0.4399,3341.4,3341.3,0.29986]
[1735688790343,3.2078,3341.6,3341.5,0.29984]
[1735688790543,3.83779732,3342.0,3341.9,0.29981]
[1735688791642,0.2998,3342.0,3341.9,0.29981]
[1735688797351,0.29981,3341.8,3341.7,1.61792]
[1735688797546,4.38819,3342.1,3341.6,5.01040474]
[1735688797547,0.29982,3341.7,3341.6,5.01040474]
[1735688797743,0.72692,3341.7,3341.6,5.01040474]
[1735688797941,0.72692,3341.7,3341.6,0.29983]
[1735688799451,0.4271,3341.7,3341.6,0.29983]
[1735688799649,0.29981,3342.0,3341.9,0.2998]
[1735688799845,0.72331,3342.0,3341.9,0.2998]
[1735688802750,0.4235,3342.0,3341.9,0.2998]
[1735688802951,0.29979,3342.1,3342.0,0.2998]
[1735688805457,0.29981,3342.0,3341.9,0.2998]
[1735688808055,0.4581,3342.1,3341.8,0.4367]
[1735688808358,0.73931,3341.9,3341.8,0.73651]
[1735688808554,0.4395,3341.9,3341.6,4.71057474]
[1735688808758,0.29982,3341.7,3341.6,4.71057474]
[1735688808960,0.29982,3341.7,3341.6,5.01040474]
[1735688809149,0.29982,3341.7,3341.6,4.71057474]
[1735688809552,3.6627,3341.8,3341.5,5.01041474]
[1735688809759,0.29983,3341.6,3341.5,5.01041474]
[1735688809960,0.29983,3341.6,3341.5,4.71057474]
[1735688810665,0.4425,3341.6,3341.4,4.71057474]
[1735688810957,0.29984,3341.5,3341.4,4.71057474]
[1735688811152,0.29984,3341.5,3341.4,5.01042474]
[1735688811958,0.29984,3341.5,3341.4,0.29985]
[1735688812865,0.4425,3341.6,3341.3,0.29986]
[1735688812866,0.29986,3341.4,3341.3,0.29986]
[1735688813056,0.74746,3341.4,3341.3,0.29986]
[1735688815863,7.20069732,3341.8,3341.2,4.71057474]
[1735688816168,7.04561732,3341.8,3341.7,0.29982]
[1735688816770,3.50762,3341.8,3341.7,0.29982]
[1735688818259,0.4502,3341.9,3341.6,1.344]
[1735688818464,0.29981,3341.9,3341.8,0.29981]
[1735688819163,3.53799732,3342.1,3342.0,0.2998]
[1735688819367,3.53799732,3342.2,3342.1,0.29979]
[1735688821372,0.29977,3342.3,3342.2,0.29978]
[1735688821676,0.29977,3342.3,3342.2,0.8834]
[1735688821870,0.29978,3342.2,3342.1,5.15247474]
[1735688822070,0.73208,3342.2,3342.1,4.71057474]
[1735688822271,0.73208,3342.2,3342.1,5.01036474]
[1735688822568,0.73208,3342.2,3342.1,0.29979]
[1735688823369,0.29979,3342.1,3342.0,5.01036474]
[1735688824174,0.4323,3342.2,3342.0,4.71057474]
[1735688824373,0.73209,3342.2,3342.1,0.29979]
[1735688825372,0.4323,3342.2,3342.0,4.71057474]
[1735688825573,0.29979,3342.1,3342.0,5.01037474]
[1735688826573,0.29979,3342.1,3342.0,4.71057474]
[1735688826776,0.75909,3342.1,3342.0,4.71057474]
[1735688826978,0.2998,3342.0,3341.9,4.71057474]
[1735688828282,0.2998,3342.0,3341.9,5.01038474]
[1735688828581,0.29981,3341.8,3341.7,5.01039474]
[1735688829875,8.35266732,3342.2,3341.7,4.71057474]
[1735688829876,7.60319732,3342.2,3341.7,4.71057474]
[1735688830074,0.29981,3341.9,3341.8,0.2998]
[1735688830276,0.29981,3341.8,3341.7,5.01039474]
[1735688830682,0.29981,3341.8,3341.7,4.71057474]
[1735688831579,0.29981,3341.8,3341.7,5.01039474]
[1735688832584,0.29981,3341.8,3341.7,10.58094562]
[1735688834398,0.29981,3341.8,3341.7,10.28112562]
[1735688834787,0.29981,3341.8,3341.7,10.58094562]
[1735688834974,0.29981,3341.8,3341.7,5.01039474]
[1735688836184,3.50761,3341.8,3341.7,4.71057474]
[1735688836484,3.50761,3341.8,3341.7,3.75090986]
[1735688836786,3.50761,3341.8,3341.7,3.05180986]
[1735688837280,8.50761,3341.8,3341.7,3.05180986]
[1735688837581,8.83452019,3341.8,3341.7,3.05180986]
[1735688838578,14.43043054,3341.8,3341.0,0.9015]
[1735688838779,0.29987,3341.2,3341.1,0.29987]
[1735688840287,0.29987,3341.3,3341.2,0.29986]
[1735688842890,0.29988,3341.2,3341.1,0.29988]
[1735688843097,3.4629638,3341.5,3341.0,0.9015]
[1735688843299,0.29988,3341.1,3341.0,0.436]
[1735688843500,0.29988,3341.1,3341.0,0.73589]
[1735688845601,6.24935751,3341.5,3341.0,0.436]
[1735688845795,0.29988,3341.2,3341.1,0.29987]
[1735688850808,2.7133438,3341.5,3341.0,0.436]
[1735688851009,0.29988,3341.1,3341.0,0.436]
[1735688851208,0.29988,3341.1,3341.0,0.73589]
[1735688856206,1.3778689,3341.1,3341.0,0.73589]
[1735688856905,0.29988,3341.1,3341.0,0.73589]
[1735688859906,1.0779889,3341.3,3341.0,0.73589]
[1735688859907,0.29987,3341.3,3341.2,0.29986]
[1735688868427,2.3554328,3341.5,3341.4,0.29985]
[1735688869719,2.3554328,3341.5,3341.4,0.75025]
[1735688869925,1.3778089,3341.7,3341.6,0.29983]
[1735688870627,3.7332317,3341.9,3341.8,0.29981]
[1735688870928,1.3777989,3341.9,3341.8,0.29981]
[1735688871228,1.0779889,3341.9,3341.8,0.29981]
[1735688875625,2.6552328,3342.0,3341.9,0.29981]
[1735688881019,2.3554328,3342.0,3341.9,0.29981]
[1735688882731,3.2078,3342.2,3342.1,0.29979]
[1735688882925,3.2078,3342.2,3341.9,12.58425537]
[1735688883129,1.3777789,3342.0,3341.9,12.58425537]
[1735688883830,1.3777789,3342.0,3341.8,1.21511]
[1735688883831,0.2998,3341.9,3341.8,1.21511]
[1735688886629,8.28628174,3342.2,3341.8,0.9153]
[1735688886832,8.28628174,3342.2,3342.1,0.29979]
[1735688886833,5.8630128,3342.2,3342.1,0.29979]
[1735688888224,2.6552128,3342.2,3342.1,0.29979]
[1735688888630,0.29978,3342.2,3342.1,0.29979]